[Event "European Womens-ch 2025"]
[Site "Rhodes"]
[Date "2025.04.02"]
[Round "3.8"]
[White "Kirtadze, Anastasia"]
[Black "Javakhishvili, Lela"]
[Result "1-0"]
[Annotator "RC"]
[ECO "B32"]
[WhiteElo "2180"]
[BlackElo "2429"]
[PlyCount "61"]
[EventDate "2025.03.29"]
[EventType "swiss"]
[EventCountry "GRE"]
[SourceTitle "playchess.com"]
[Source "ChessBase"]
[SourceQuality "1"]
[TimeControl "40/5400+30:1800+30"]

1. e4 {[%emt 0:00:15]} c5 {[%emt 0:00:12]} 2. Nf3 {[%emt 0:00:24]} Nc6 {[%emt 0:00:13]} 3. d4 {[%emt 0:00:55]} cxd4 {[%emt 0:00:08]} 4. Nxd4 {[%emt 0:00:31]} e5 {[%emt 0:00:29]} 5. Nb5 {[%emt 0:01:33]} d6 {[%emt 0:00:10]} 6. N1c3 {[%emt 0:01:39]} a6 {[%emt 0:00:12]} 7. Na3 {[%emt 0:00:05]} Be6 {[%emt 0:00:18]} 8. Bc4 {[%emt 0:08:17]} b5 {[%emt 0:01:03]} 9. Bd5 {[%emt 0:04:17]} Rc8 {[%emt 0:00:09]} 10. Bxc6+ {[%emt 0:04:03]} Rxc6 {[%emt 0:00:07]} 11. Nd5 {[%emt 0:00:38]} Nf6 {[%emt 0:09:27]} 12. Bg5 {[%emt 0:05:36]} Bxd5 {[%emt 0:07:37]} 13. exd5 {[%emt 0:02:13]} Rc5 {[%emt 0:00:26]} 14. Bxf6 {[%emt 0:16:33]} Qxf6 {[%emt 0:00:39]} 15. c4 {[%emt 0:01:09]} e4 {[%emt 0:22:16]} 16. Qb3 {[%emt 0:18:25]} Be7 {[%emt 0:14:48]} 17. cxb5 {[%emt 0:03:59]} Qg5 {[%emt 0:08:40]} 18. bxa6 {[%emt 0:12:45]} O-O {[%emt 0:10:47]} 19. O-O {[%emt 0:01:42]} Qxd5 {[%emt 0:02:53]} 20. Qxd5 {[%emt 0:09:13]} Rxd5 {[%emt 0:00:03]} 21. b4 {[%emt 0:00:54]} Rd4 {[%emt 0:01:16]} 22. Rab1 {[%emt 0:04:31]} d5 {[%emt 0:05:18]} 23. Rfd1 {[%emt 0:01:34]} Rxb4 {[%emt 0:04:54]} 24. Rxb4 {[%emt 0:00:31]} Bxb4 {[%emt 0:00:02]} 25. Nb5 {[%emt 0:00:09]} f5 {[%emt 0:01:23]} 26. a7 {[%emt 0:00:56]} Ba5 {[%emt 0:03:19]} 27. Rxd5 {[%emt 0:00:31]} f4 {[%emt 0:00:14]} 28. Kf1 {[%emt 0:00:34]} Rc8 {[%emt 0:00:43]} 29. Rc5 {[%emt 0:00:25]} Rd8 {[%emt 0:00:02]} 30. Nd6 {[%emt 0:00:34]} Bb6 {[%emt 0:00:46]} 31. Rc8 {[%emt 0:00:11]} 1-0

[Event "European Womens-ch 2025"]
[Site "Rhodes"]
[Date "2025.04.02"]
[Round "3.9"]
[White "Batsiashvili, Nino"]
[Black "Avramidou, Anastasia"]
[Result "1-0"]
[Annotator "TA"]
[ECO "E62"]
[WhiteElo "2473"]
[BlackElo "2275"]
[PlyCount "129"]
[EventDate "2025.03.29"]
[EventType "swiss"]
[EventCountry "GRE"]
[SourceTitle "playchess.com"]
[Source "ChessBase"]
[SourceQuality "1"]
[TimeControl "40/5400+30:1800+30"]

{[%evp 13,129,1,15,4,8,7,2,0,22,10,39,32,31,21,22,25,40,51,45,22,29,32,34,35,27,27,34,20,68,52,63,30,30,32,30,39,39,40,35,35,41,39,96,94,125,61,69,69,89,69,94,69,103,95,95,95,95,96,125,88,125,0,125,107,125,125,125,61,125,38,125,72,125,125,125,125,125,125,125,125,125,125,125,125,125,124,125,125,125,125,125,125,125,125,125,29,29,29,295,335,220,29,29,29,29,29,29,29,29,29,29,0,29,29,29,29,29981,29982]} 1. c4 {[%emt 0:00:03]} Nf6 {[%emt 0:00:11]} 2. g3 {[%emt 0:00:56]} g6 {[%emt 0:00:23]} 3. Bg2 {[%emt 0:00:06]} Bg7 {[%emt 0:00:06]} 4. Nc3 {[%emt 0:00:14]} O-O {[%emt 0:01:04]} 5. d4 {[%emt 0:00:36]} d6 {[%emt 0:01:05]} 6. h3 {[%emt 0:00:09]} Nc6 {[%emt 0:05:49]} 7. Nf3 {[%emt 0:00:24]} e5 {[%emt 0:05:43]} 8. Be3 {[%emt 0:01:06] E62: King's Indian: Fianchetto: 6...c6 and Panno Variation (6...Nc6) without ...a6.} exd4 {[%emt 0:07:14]} 9. Nxd4 {[%emt 0:00:18]} Nxd4 {[%emt 0:00:08]} 10. Bxd4 {[%emt 0:00:10] The position is equal.} Re8 {[%emt 0:00:07]} 11. O-O {[%emt 0:03:45]} Be6 {[%emt 0:12:26]} 12. b3 {[%emt 0:07:24][%cal Od1d2]} (12. Bxb7 {keeps more tension.} Bxh3 13. Bxf6 Bxf6 14. Bxa8 Qxa8 15. Nd5) 12... c5 $146 {[%emt 0:14:38]} (12... Qd7 13. Kh2 c5 14. Bxf6 Bxf6 15. Rc1 Rad8 16. Qd2 a6 17. Rfd1 b5 18. Nd5 Bxd5 19. Bxd5 {½-½ Pahl,T (2108)-Schumann,S (1981) Leer op 2024 (4)}) 13. Bxf6 {[%emt 0:07:48]} Bxf6 {[%emt 0:01:48]} 14. Qd2 {[%emt 0:10:34]} Bxc3 {[%emt 0:08:30]} 15. Qxc3 {[%emt 0:00:04]} Qd7 {[%emt 0:00:07]} 16. Kh2 {[%emt 0:04:47]} Rad8 {[%emt 0:00:40]} 17. Rfd1 {[%emt 0:08:24]} b5 {[%emt 0:01:58]} 18. cxb5 {[%emt 0:00:50]} Qxb5 {[%emt 0:00:38]} 19. e3 {[%emt 0:00:18]} a5 {[%emt 0:09:34]} 20. Rd2 {[%emt 0:04:07]} Qb4 {[%emt 0:04:58]} (20... a4 $11) 21. Qxb4 {[%emt 0:01:11]} axb4 {[%emt 0:00:09]} 22. Rad1 {[%emt 0:00:07][%cal Og3g4]} Re7 $1 {[%emt 0:02:54]} 23. Rxd6 {[%emt 0:14:50]} Rxd6 {[%emt 0:00:06]} 24. Rxd6 $11 {[%emt 0:00:01][%mdl 4096] Endgame KRB-KRB. White is a pawn up.} Ra7 {[%emt 0:00:11]} 25. Rd2 {[%emt 0:00:06]} c4 {[%emt 0:00:09]} 26. bxc4 {[%emt 0:00:49]} Bxc4 {[%emt 0:00:06]} 27. Rd4 {[%emt 0:00:29]} Bxa2 {[%emt 0:03:30]} (27... Be6 $1 $14) 28. Rxb4 $16 {[%emt 0:00:06]} h5 {[%emt 0:03:24]} 29. g4 {[%emt 0:00:43]} (29. Rb8+ $16 Kg7 30. Ra8 Rxa8 31. Bxa8) 29... hxg4 {[%emt 0:00:06]} 30. hxg4 {[%emt 0:00:03][%cal Bh3g4,Bg4g5][%mdl 32]} Be6 {[%emt 0:01:51]} 31. Kg3 {[%emt 0:00:05]} Kg7 {[%emt 0:02:33]} 32. Be4 {[%emt 0:03:06]} Ra3 {[%emt 0:02:50]} 33. Kf4 {[%emt 0:02:30]} Ra2 {[%emt 0:03:03]} 34. f3 {[%emt 0:00:30]} Kf6 {[%emt 0:00:25]} 35. g5+ {[%emt 0:02:28]} Kg7 {[%emt 0:02:06]} 36. Rd4 {[%emt 0:02:08]} Ra5 {[%emt 0:01:13]} 37. Rb4 {[%emt 0:04:56]} (37. Rd6 $1 $16) 37... Rc5 {[%emt 0:01:22]} (37... Ra2 $1 $11) 38. Bd3 {[%emt 0:00:47]} Rd5 {[%emt 0:01:29]} 39. Bb1 {[%emt 0:01:38]} Rc5 {[%emt 0:02:17]} 40. Rd4 {[%emt 0:00:00]} (40. Rb7 $16) 40... Ra5 {[%emt 0:00:00]} (40... f6 $14) 41. e4 {[%emt 0:06:12]} (41. Rd6 $1 $16) 41... Rc5 {[%emt 0:09:24]} ({Black should play} 41... f6 $1 $14) 42. Bd3 {[%emt 0:00:28]} (42. Ra4 $142) 42... Ra5 {[%emt 0:02:10]} (42... f6 $142) 43. Rd6 {[%emt 0:01:03]} Kf8 {[%emt 0:04:58]} 44. Rb6 {[%emt 0:02:08]} Rc5 {[%emt 0:02:57]} 45. Ba6 {[%emt 0:02:46]} Kg7 {[%emt 0:01:29]} 46. Bb7 {[%emt 0:01:22]} Kf8 {[%emt 0:02:14]} 47. Bc6 {[%emt 0:07:40]} Kg7 {[%emt 0:00:54]} 48. Ba8 {[%emt 0:00:48]} Kf8 {[%emt 0:01:30]} 49. Rd6 {[%emt 0:04:20]} Ke7 {[%emt 0:03:17]} 50. Ra6 {[%emt 0:02:11]} Kf8 {[%emt 0:01:36]} 51. Bb7 {[%emt 0:02:01]} Kg7 {[%emt 0:02:11]} 52. Rd6 {[%emt 0:00:35]} Kf8 {[%emt 0:01:27]} 53. Bd5 {[%emt 0:01:11]} Bxd5 {[%emt 0:01:12]} 54. exd5 {[%emt 0:00:29] KR-KR. White is a pawn up.} ({White should play} 54. Rxd5 $16 Rc8 55. Kg4) 54... Ke7 $11 {[%emt 0:02:57]} 55. Ke5 {[%emt 0:00:10]} Rc3 {[%emt 0:01:59][%mdl 8192]} (55... Rc1 $11 56. Ra6 Re1+ 57. Kf4 Rg1) 56. Rf6 $18 {[%emt 0:00:17]} Rd3 {[%emt 0:00:32] [#]} 57. Ke4 $2 {[%emt 0:00:29]} ({Don't do} 57. d6+ $6 Kf8 $16) (57. Rf4 $1 $18) 57... Rd1 $11 {[%emt 0:00:25]} 58. Ra6 {[%emt 0:05:38] Hoping for Ra7+.} Re1+ {[%emt 0:00:38]} 59. Kf4 {[%emt 0:00:02]} Re2 {[%emt 0:00:45]} 60. Ra7+ {[%emt 0:00:12]} Ke8 {[%emt 0:00:05]} 61. d6 {[%emt 0:02:13]} Re6 {[%emt 0:00:56]} 62. Ra8+ {[%emt 0:00:12]} Kd7 {[%emt 0:00:03]} 63. Rf8 {[%emt 0:00:06]} Kxd6 {[%emt 0:00:58]} 64. Rxf7 {[%emt 0:00:05]} Re7 $2 {[%emt 0:00:30][%mdl 8192] [#]} (64... Kc6 $11) 65. Rxe7 $1 {[%emt 0:00:17] Weighted Error Value: White=0.19 (very precise) /Black=0.35  Loses game:     	---       	Black=2      Missed win:     	White=1     	---        Mistake:       	White=6     	Black=6      Inaccurate:     	White=1     	Black=6      OK:         	White=22    	Black=19     Best:        	White=3     	Black=2      Strong:       	White=1     	Black=1} 1-0

[Event "European Womens-ch 2025"]
[Site "Rhodes"]
[Date "2025.04.02"]
[Round "3.10"]
[White "Arabidze, Meri"]
[Black "Mkrtchyan, Mariam"]
[Result "1/2-1/2"]
[Annotator "RC"]
[ECO "D78"]
[WhiteElo "2447"]
[BlackElo "2282"]
[PlyCount "52"]
[EventDate "2025.03.29"]
[EventType "swiss"]
[EventCountry "GRE"]
[SourceTitle "playchess.com"]
[Source "ChessBase"]
[SourceQuality "1"]
[TimeControl "40/5400+30:1800+30"]

1. d4 {[%emt 0:00:22]} d5 {[%emt 0:00:05]} 2. c4 {[%emt 0:00:17]} c6 {[%emt 0:00:05]} 3. Nf3 {[%emt 0:00:05]} Nf6 {[%emt 0:00:05]} 4. g3 {[%emt 0:00:03]} g6 {[%emt 0:00:06]} 5. Bg2 {[%emt 0:00:36]} Bg7 {[%emt 0:00:04]} 6. O-O {[%emt 0:00:25]} O-O {[%emt 0:00:05]} 7. a4 {[%emt 0:01:06]} Bf5 {[%emt 0:00:33]} 8. Nc3 {[%emt 0:03:29]} dxc4 {[%emt 0:00:24]} 9. a5 {[%emt 0:09:40]} Na6 {[%emt 0:00:06]} 10. Qa4 {[%emt 0:03:40]} Be6 {[%emt 0:00:08]} 11. e4 {[%emt 0:07:33]} Qc8 {[%emt 0:00:15]} 12. Ng5 {[%emt 0:04:09]} b5 {[%emt 0:00:19]} 13. axb6 {[%emt 0:03:11]} axb6 {[%emt 0:00:04]} 14. Nxe6 {[%emt 0:03:23]} b5 {[%emt 0:00:08]} 15. Qd1 {[%emt 0:04:18]} Qxe6 {[%emt 0:00:08]} 16. d5 {[%emt 0:14:07]} cxd5 {[%emt 0:00:04]} 17. exd5 {[%emt 0:00:18]} Qb6 {[%emt 0:00:05]} 18. Qe2 {[%emt 0:01:26]} Nc5 {[%emt 0:28:22]} 19. Rxa8 {[%emt 0:03:40]} Rxa8 {[%emt 0:00:04]} 20. d6 {[%emt 0:00:22]} Re8 {[%emt 0:00:30]} 21. dxe7 {[%emt 0:00:30]} Ne6 {[%emt 0:01:08]} 22. Qe5 {[%emt 0:11:20]} b4 {[%emt 0:08:26]} 23. Nd5 {[%emt 0:01:37]} Nxd5 {[%emt 0:02:33]} 24. Qxd5 {[%emt 0:00:02]} Qc7 {[%emt 0:09:25]} 25. Qb5 {[%emt 0:00:55]} Rxe7 {[%emt 0:04:19]} 26. Qxb4 {[%emt 0:00:10]} c3 {[%emt 0:01:29]} 1/2-1/2

[Event "European Womens-ch 2025"]
[Site "Rhodes"]
[Date "2025.04.02"]
[Round "3.11"]
[White "Sieber, Fiona"]
[Black "Tsolakidou, Stavroula"]
[Result "1/2-1/2"]
[Annotator "RC"]
[ECO "B48"]
[WhiteElo "2276"]
[BlackElo "2445"]
[PlyCount "76"]
[EventDate "2025.03.29"]
[EventType "swiss"]
[EventCountry "GRE"]
[SourceTitle "playchess.com"]
[Source "ChessBase"]
[SourceQuality "1"]
[TimeControl "40/5400+30:1800+30"]

1. e4 {[%emt 0:00:03]} c5 {[%emt 0:02:24]} 2. Nf3 {[%emt 0:00:11]} e6 {[%emt 0:00:11]} 3. d4 {[%emt 0:00:11]} cxd4 {[%emt 0:00:06]} 4. Nxd4 {[%emt 0:00:05]} Nc6 {[%emt 0:00:05]} 5. Nc3 {[%emt 0:00:08]} Qc7 {[%emt 0:00:08]} 6. Be3 {[%emt 0:00:39]} a6 {[%emt 0:00:19]} 7. g4 {[%emt 0:05:37]} h6 {[%emt 0:10:33]} 8. Qd2 {[%emt 0:04:09]} Nf6 {[%emt 0:05:20]} 9. Nxc6 {[%emt 0:03:06]} dxc6 {[%emt 0:22:05]} 10. f3 {[%emt 0:05:37]} e5 {[%emt 0:00:20]} 11. Bc4 {[%emt 0:01:05]} b5 {[%emt 0:03:28]} 12. Bb3 {[%emt 0:01:35]} Nd7 {[%emt 0:02:51]} 13. a4 {[%emt 0:07:54]} Rb8 {[%emt 0:09:49]} 14. Qf2 {[%emt 0:05:12]} Bb4 {[%emt 0:03:50]} 15. O-O {[%emt 0:01:09]} Nf8 {[%emt 0:08:35]} 16. axb5 {[%emt 0:02:36]} axb5 {[%emt 0:00:18]} 17. f4 {[%emt 0:07:39]} Ne6 {[%emt 0:05:19]} 18. Bxe6 {[%emt 0:08:02]} Bxe6 {[%emt 0:00:24]} 19. f5 {[%emt 0:00:49]} Bc4 {[%emt 0:03:12]} 20. Ne2 {[%emt 0:04:25]} f6 {[%emt 0:01:43]} 21. Ra7 {[%emt 0:03:40]} Rb7 {[%emt 0:00:30]} 22. Ra8+ {[%emt 0:00:13]} Rb8 {[%emt 0:00:05]} 23. Ra7 {[%emt 0:00:08]} Rb7 {[%emt 0:00:07]} 24. Rfa1 {[%emt 0:01:38]} Rxa7 {[%emt 0:04:28]} 25. Rxa7 {[%emt 0:00:45]} Qd8 {[%emt 0:00:49]} 26. b3 {[%emt 0:11:47]} Qd1+ {[%emt 0:03:58]} 27. Qf1 {[%emt 0:00:25]} Bxe2 {[%emt 0:00:37]} 28. Qxd1 {[%emt 0:00:16]} Bxd1 {[%emt 0:00:05]} 29. Ra8+ {[%emt 0:00:19]} Kf7 {[%emt 0:00:19]} 30. Rxh8 {[%emt 0:00:05]} Bxc2 {[%emt 0:00:05]} 31. Rc8 {[%emt 0:01:23]} Bxe4 {[%emt 0:00:36]} 32. Rc7+ {[%emt 0:03:09]} Kg8 {[%emt 0:01:47]} 33. Kf2 {[%emt 0:00:45]} Bd6 {[%emt 0:02:42]} 34. Rd7 {[%emt 0:00:35]} Bf8 {[%emt 0:00:18]} 35. Rc7 {[%emt 0:00:44]} Bd5 {[%emt 0:00:51]} 36. Rc8 {[%emt 0:01:38]} Kf7 {[%emt 0:00:07]} 37. Rc7+ {[%emt 0:00:04]} Kg8 {[%emt 0:00:31]} 38. Rc8 {[%emt 0:00:04]} Kf7 {[%emt 0:00:06]} 1/2-1/2

[Event "European Womens-ch 2025"]
[Site "Rhodes"]
[Date "2025.04.02"]
[Round "3.12"]
[White "Wagner, Dinara"]
[Black "Allahverdiyeva, Ayan"]
[Result "1/2-1/2"]
[Annotator "RC"]
[ECO "E32"]
[WhiteElo "2440"]
[BlackElo "2266"]
[PlyCount "85"]
[EventDate "2025.03.29"]
[EventType "swiss"]
[EventCountry "GRE"]
[SourceTitle "playchess.com"]
[Source "ChessBase"]
[SourceQuality "1"]
[TimeControl "40/5400+30:1800+30"]

1. d4 {[%emt 0:00:01]} Nf6 {[%emt 0:00:04]} 2. c4 {[%emt 0:00:05]} e6 {[%emt 0:00:03]} 3. Nc3 {[%emt 0:00:04]} Bb4 {[%emt 0:00:03]} 4. Qc2 {[%emt 0:00:09]} d6 {[%emt 0:00:29]} 5. e3 {[%emt 0:00:06]} Nbd7 {[%emt 0:06:02]} 6. Bd3 {[%emt 0:00:23]} d5 {[%emt 0:05:44]} 7. Nge2 {[%emt 0:08:35]} c6 {[%emt 0:00:11]} 8. O-O {[%emt 0:01:22]} O-O {[%emt 0:04:28]} 9. Bd2 {[%emt 0:11:15]} Bd6 {[%emt 0:07:02]} 10. cxd5 {[%emt 0:00:23]} exd5 {[%emt 0:00:25]} 11. f3 {[%emt 0:12:19]} c5 {[%emt 0:00:43]} 12. Nb5 {[%emt 0:02:00]} Be7 {[%emt 0:00:33]} 13. dxc5 {[%emt 0:00:04]} Bxc5 {[%emt 0:02:09]} 14. Nbd4 {[%emt 0:16:12]} Re8 {[%emt 0:00:09]} 15. Kh1 {[%emt 0:06:10]} a6 {[%emt 0:01:03]} 16. Ng3 {[%emt 0:02:25]} Bxd4 {[%emt 0:08:26]} 17. exd4 {[%emt 0:00:07]} Nf8 {[%emt 0:02:29]} 18. Qb3 {[%emt 0:02:41]} Re6 {[%emt 0:07:10]} 19. Ne2 {[%emt 0:03:55]} Qb6 {[%emt 0:04:34]} 20. Qa3 {[%emt 0:00:45]} a5 {[%emt 0:00:17]} 21. Rac1 {[%emt 0:01:35]} Re8 {[%emt 0:48:56]} 22. Rc5 {[%emt 0:02:46]} Bf5 {[%emt 0:00:00]} 23. Rb5 {[%emt 0:03:42]} Qa6 {[%emt 0:00:00]} 24. Nf4 {[%emt 0:01:49]} Bxd3 {[%emt 0:00:00]} 25. Qxd3 {[%emt 0:00:04]} b6 {[%emt 0:00:00]} 26. Rb3 {[%emt 0:04:48]} Ne6 {[%emt 0:00:00]} 27. Qxa6 {[%emt 0:02:50]} Rxa6 {[%emt 0:00:00]} 28. Nxe6 {[%emt 0:00:05]} Rxe6 {[%emt 0:00:00]} 29. Re1 {[%emt 0:08:24]} Rxe1+ {[%emt 0:00:00]} 30. Bxe1 {[%emt 0:00:02]} Kf8 {[%emt 0:00:00]} 31. Bg3 {[%emt 0:04:51]} a4 {[%emt 0:00:00]} 32. Rb5 {[%emt 0:00:08]} Ke7 {[%emt 0:00:00]} 33. Bc7 {[%emt 0:00:33]} Kd7 {[%emt 0:00:00]} 34. Rxb6 {[%emt 0:00:14]} Rxb6 {[%emt 0:00:00]} 35. Bxb6 {[%emt 0:00:02]} Kc6 {[%emt 0:00:00]} 36. Bc5 {[%emt 0:00:26]} Kb5 {[%emt 0:00:00]} 37. b3 {[%emt 0:00:39]} axb3 {[%emt 0:00:13]} 38. axb3 {[%emt 0:00:01]} Nd7 {[%emt 0:05:35]} 39. Bd6 {[%emt 0:00:05]} Kc6 {[%emt 0:00:04]} 40. Ba3 {[%emt 0:00:00]} Kb5 {[%emt 0:00:00]} 41. Bd6 {[%emt 0:31:57]} Kc6 {[%emt 0:02:13]} 42. Ba3 {[%emt 0:02:15]} Kb5 {[%emt 0:00:04]} 43. Bd6 {[%emt 0:00:34]} 1/2-1/2

[Event "European Womens-ch 2025"]
[Site "Rhodes"]
[Date "2025.04.02"]
[Round "3.13"]
[White "Ushenina, Anna"]
[Black "Krasteva, Beloslava"]
[Result "1/2-1/2"]
[Annotator "RC"]
[ECO "E61"]
[WhiteElo "2428"]
[BlackElo "2257"]
[PlyCount "75"]
[EventDate "2025.03.29"]
[EventType "swiss"]
[EventCountry "GRE"]
[SourceTitle "playchess.com"]
[Source "ChessBase"]
[SourceQuality "1"]
[TimeControl "40/5400+30:1800+30"]

1. d4 {[%emt 0:00:08]} d6 {[%emt 0:00:33]} 2. Nf3 {[%emt 0:00:23]} Nf6 {[%emt 0:00:17]} 3. c4 {[%emt 0:00:25]} g6 {[%emt 0:00:14]} 4. Nc3 {[%emt 0:00:28]} Bf5 {[%emt 0:00:27]} 5. Qb3 {[%emt 0:04:09]} b6 {[%emt 0:00:20]} 6. c5 {[%emt 0:19:36]} Bg7 {[%emt 0:31:36]} 7. cxd6 {[%emt 0:31:57]} exd6 {[%emt 0:02:43]} 8. g3 {[%emt 0:02:59]} O-O {[%emt 0:04:14]} 9. Bg2 {[%emt 0:00:12]} c6 {[%emt 0:02:24]} 10. O-O {[%emt 0:05:08]} Ne4 {[%emt 0:04:22]} 11. Rd1 {[%emt 0:08:54]} Nxc3 {[%emt 0:03:37]} 12. Qxc3 {[%emt 0:00:18]} Be4 {[%emt 0:01:02]} 13. Bg5 {[%emt 0:00:31]} Qc7 {[%emt 0:04:52]} 14. Qe3 {[%emt 0:01:20]} Bd5 {[%emt 0:04:36]} 15. Bh6 {[%emt 0:03:40]} Nd7 {[%emt 0:00:53]} 16. Bxg7 {[%emt 0:00:04]} Kxg7 {[%emt 0:00:05]} 17. Qc3 {[%emt 0:00:26]} Nf6 {[%emt 0:06:30]} 18. b3 {[%emt 0:00:32]} Rfe8 {[%emt 0:01:02]} 19. Qb2 {[%emt 0:00:15]} a5 {[%emt 0:01:44]} 20. Rac1 {[%emt 0:01:01]} a4 {[%emt 0:05:27]} 21. Ne1 {[%emt 0:01:51]} axb3 {[%emt 0:02:10]} 22. axb3 {[%emt 0:00:16]} Bxg2 {[%emt 0:08:06]} 23. Nxg2 {[%emt 0:00:02]} d5 {[%emt 0:00:53]} 24. Rc2 {[%emt 0:01:08]} Qd7 {[%emt 0:01:12]} 25. Qc1 {[%emt 0:02:01]} Rac8 {[%emt 0:01:17]} 26. Nf4 {[%emt 0:00:53]} Ne4 {[%emt 0:02:55]} 27. Nd3 {[%emt 0:01:32]} f6 {[%emt 0:00:58]} 28. Nb4 {[%emt 0:02:13]} Re6 {[%emt 0:00:43]} 29. Qf4 {[%emt 0:00:53]} Ng5 {[%emt 0:02:17]} 30. Qc1 {[%emt 0:00:43]} h5 {[%emt 0:01:37]} 31. h4 {[%emt 0:01:03]} Nf7 {[%emt 0:00:40]} 32. Kg2 {[%emt 0:01:44]} Nh6 {[%emt 0:00:54]} 33. Qd2 {[%emt 0:02:21]} Nf5 {[%emt 0:00:45]} 34. Rdc1 {[%emt 0:00:16]} Rd6 {[%emt 0:03:45]} 35. Qf4 {[%emt 0:04:13]} Re6 {[%emt 0:00:05]} 36. Qd2 {[%emt 0:01:37]} Rd6 {[%emt 0:00:04]} 37. Qf4 {[%emt 0:00:44]} Re6 {[%emt 0:00:04]} 38. Qd2 {[%emt 0:00:14]} 1/2-1/2

[Event "European Womens-ch 2025"]
[Site "Rhodes"]
[Date "2025.04.02"]
[Round "3.14"]
[White "Jarocka, Liwia"]
[Black "Stefanova, Antoaneta"]
[Result "1/2-1/2"]
[Annotator "RC"]
[ECO "C41"]
[WhiteElo "2231"]
[BlackElo "2426"]
[PlyCount "103"]
[EventDate "2025.03.29"]
[EventType "swiss"]
[EventCountry "GRE"]
[SourceTitle "playchess.com"]
[Source "ChessBase"]
[SourceQuality "1"]
[TimeControl "40/5400+30:1800+30"]

1. e4 {[%emt 0:00:09]} d6 {[%emt 0:03:34]} 2. d4 {[%emt 0:00:26]} Nf6 {[%emt 0:00:10]} 3. Nc3 {[%emt 0:00:25]} e5 {[%emt 0:00:52]} 4. Nf3 {[%emt 0:00:51]} Nbd7 {[%emt 0:00:56]} 5. g4 {[%emt 0:12:59]} Nxg4 {[%emt 0:04:33]} 6. Rg1 {[%emt 0:01:05]} Ngf6 {[%emt 0:01:30]} 7. Bc4 {[%emt 0:00:09]} exd4 {[%emt 0:32:46]} 8. Qxd4 {[%emt 0:02:28]} Nb6 {[%emt 0:06:19]} 9. Bb3 {[%emt 0:14:33]} c5 {[%emt 0:03:31]} 10. Qd3 {[%emt 0:02:07]} Be6 {[%emt 0:12:57]} 11. Bxe6 {[%emt 0:04:30]} fxe6 {[%emt 0:00:06]} 12. e5 {[%emt 0:01:20]} dxe5 {[%emt 0:01:18]} 13. Qb5+ {[%emt 0:01:30]} Nfd7 {[%emt 0:08:16]} 14. Nxe5 {[%emt 0:05:22]} a6 {[%emt 0:01:26]} 15. Qe2 {[%emt 0:01:46]} Nxe5 {[%emt 0:01:18]} 16. Qxe5 {[%emt 0:00:04]} Qd6 {[%emt 0:01:11]} 17. Qxd6 {[%emt 0:03:48]} Bxd6 {[%emt 0:00:02]} 18. Rxg7 {[%emt 0:00:06]} O-O-O {[%emt 0:01:47]} 19. Ke2 {[%emt 0:17:04]} Bxh2 {[%emt 0:09:23]} 20. Ne4 {[%emt 0:00:51]} Be5 {[%emt 0:05:34]} 21. Rg5 {[%emt 0:05:39]} Rd5 {[%emt 0:01:20]} 22. f4 {[%emt 0:02:08]} Bb8 {[%emt 0:00:59]} 23. Nxc5 {[%emt 0:02:51]} e5 {[%emt 0:00:34]} 24. Nd3 {[%emt 0:02:07]} exf4 {[%emt 0:00:30]} 25. Rxd5 {[%emt 0:02:42]} Nxd5 {[%emt 0:00:02]} 26. Bd2 {[%emt 0:01:26]} Rg8 {[%emt 0:00:49]} 27. Kf3 {[%emt 0:01:25]} Rg3+ {[%emt 0:01:02]} 28. Ke4 {[%emt 0:00:01]} Rg2 {[%emt 0:00:54]} 29. Be1 {[%emt 0:05:51]} Nb6 {[%emt 0:00:43]} 30. Bf2 {[%emt 0:00:17]} Nc4 {[%emt 0:00:09]} 31. Rh1 {[%emt 0:00:58]} Rg7 {[%emt 0:00:36]} 32. Rh5 {[%emt 0:02:42]} Re7+ {[%emt 0:00:17]} 33. Kf5 {[%emt 0:02:02]} b5 {[%emt 0:00:54]} 34. Kf6 {[%emt 0:01:53]} Re2 {[%emt 0:00:30]} 35. Rxh7 {[%emt 0:00:55]} Bc7 {[%emt 0:00:13]} 36. b3 {[%emt 0:02:25]} Nb2 {[%emt 0:00:45]} 37. Rh8+ {[%emt 0:01:06]} Kb7 {[%emt 0:00:32]} 38. Nc5+ {[%emt 0:00:11]} Kc6 {[%emt 0:00:07]} 39. Bd4 {[%emt 0:00:16]} Rxc2 {[%emt 0:00:30]} 40. Nxa6 {[%emt 0:00:00]} Kb7 {[%emt 0:00:00]} 41. Nxc7 {[%emt 0:04:27]} Kxc7 {[%emt 0:03:07]} 42. Be5+ {[%emt 0:00:19]} Kb7 {[%emt 0:16:41]} 43. Bxf4 {[%emt 0:01:52]} Nd3 {[%emt 0:03:01]} 44. Rh7+ {[%emt 0:00:43]} Kc8 {[%emt 0:02:01]} 45. Rh2 {[%emt 0:05:20]} Rxh2 {[%emt 0:03:08]} 46. Bxh2 {[%emt 0:00:12]} Nc1 {[%emt 0:03:01]} 47. Bf4 {[%emt 0:00:12]} Nxa2 {[%emt 0:00:04]} 48. Bd2 {[%emt 0:00:04]} Kd7 {[%emt 0:00:23]} 49. Ke5 {[%emt 0:00:10]} Kc6 {[%emt 0:00:43]} 50. Kd4 {[%emt 0:00:23]} Kd6 {[%emt 0:00:17]} 51. Bf4+ {[%emt 0:00:43]} Kc6 {[%emt 0:00:05]} 52. Bd2 {[%emt 0:00:08]} 1/2-1/2

[Event "European Womens-ch 2025"]
[Site "Rhodes"]
[Date "2025.04.02"]
[Round "3.15"]
[White "Sandu, Mihaela"]
[Black "Mkrtchian, Lilit"]
[Result "0-1"]
[Annotator "RC"]
[ECO "B12"]
[WhiteElo "2230"]
[BlackElo "2388"]
[PlyCount "66"]
[EventDate "2025.03.29"]
[EventType "swiss"]
[EventCountry "GRE"]
[SourceTitle "playchess.com"]
[Source "ChessBase"]
[SourceQuality "1"]
[TimeControl "40/5400+30:1800+30"]

1. e4 {[%emt 0:00:04]} c6 {[%emt 0:00:35]} 2. d4 {[%emt 0:00:04]} d5 {[%emt 0:00:11]} 3. e5 {[%emt 0:00:03]} c5 {[%emt 0:00:24]} 4. dxc5 {[%emt 0:00:08]} e6 {[%emt 0:00:08]} 5. Nf3 {[%emt 0:00:08]} Bxc5 {[%emt 0:00:35]} 6. a3 {[%emt 0:00:07]} f6 {[%emt 0:10:08]} 7. b4 {[%emt 0:01:16]} Be7 {[%emt 0:00:20]} 8. Bb2 {[%emt 0:00:20]} Nc6 {[%emt 0:00:31]} 9. Bd3 {[%emt 0:02:03]} Nh6 {[%emt 0:00:46]} 10. Nbd2 {[%emt 0:05:51]} Nf7 {[%emt 0:01:48]} 11. exf6 {[%emt 0:00:16]} Bxf6 {[%emt 0:00:43]} 12. Bxf6 {[%emt 0:00:47]} Qxf6 {[%emt 0:00:23]} 13. c4 {[%emt 0:01:53]} Nfe5 {[%emt 0:28:44]} 14. Be2 {[%emt 0:01:39]} Nxf3+ {[%emt 0:02:35]} 15. Nxf3 {[%emt 0:00:18]} Qc3+ {[%emt 0:07:57]} 16. Nd2 {[%emt 0:02:19]} O-O {[%emt 0:10:10]} 17. O-O {[%emt 0:04:54]} Nd4 {[%emt 0:02:54]} 18. Bg4 {[%emt 0:29:14]} e5 {[%emt 0:12:03]} 19. Bxc8 {[%emt 0:01:14]} Raxc8 {[%emt 0:00:04]} 20. cxd5 {[%emt 0:01:52]} Qd3 {[%emt 0:00:56]} 21. Kh1 {[%emt 0:00:28]} Rc2 {[%emt 0:02:08]} 22. Qh5 {[%emt 0:06:05]} Rxd2 {[%emt 0:01:26]} 23. Qxe5 {[%emt 0:00:15]} Nf5 {[%emt 0:04:29]} 24. Rae1 {[%emt 0:05:53]} Qxd5 {[%emt 0:00:28]} 25. Qc7 {[%emt 0:00:06]} h6 {[%emt 0:02:22]} 26. Kg1 {[%emt 0:00:49]} Rd4 {[%emt 0:03:11]} 27. h3 {[%emt 0:03:46]} Rc4 {[%emt 0:00:54]} 28. Qh2 {[%emt 0:00:25]} Qd6 {[%emt 0:01:08]} 29. Qxd6 {[%emt 0:12:02]} Nxd6 {[%emt 0:00:05]} 30. Re5 {[%emt 0:00:08]} Rd4 {[%emt 0:00:33]} 31. Rc1 {[%emt 0:00:21]} Rf7 {[%emt 0:01:05]} 32. Rc3 {[%emt 0:00:57]} Rd1+ {[%emt 0:00:21]} 33. Kh2 {[%emt 0:00:04]} Rxf2 {[%emt 0:00:17]} 0-1